[Event "Mitropa Online Cup Open 2021"]
[Site "Hybrid"]
[Date "2021.05.04"]
[Round "1.5"]
[White "Travadon, Loic"]
[Black "Schwabeneder, Florian"]
[Result "1/2-1/2"]
[ECO "D37"]
[WhiteElo "2414"]
[BlackElo "2443"]
[Annotator "NA"]
[PlyCount "62"]
[EventDate "2021.05.04"]
[EventType "team-tourn"]
[EventCountry "NET"]
[SourceTitle "playchess.com"]
[Source "ChessBase"]
[SourceQuality "1"]
[WhiteTeam "France"]
[BlackTeam "Austria"]
[WhiteTeamCountry "FRA"]
[BlackTeamCountry "AUT"]
[TimeControl "40/5400+30:1800+30"]

1. d4 {[%emt 0:00:00]} d5 {[%emt 0:00:20]} 2. c4 {[%emt 0:00:36]} e6 {[%emt 0:00:10]} 3. Nc3 {[%emt 0:01:13]} Nf6 {[%emt 0:00:51]} 4. Nf3 {[%emt 0:00:18]} Nbd7 {[%emt 0:00:15]} 5. e3 {[%emt 0:02:38]} a6 {[%emt 0:07:39]} 6. cxd5 {[%emt 0:03:24]} exd5 {[%emt 0:01:33]} 7. Qb3 {[%emt 0:00:40]} Nb6 {[%emt 0:16:03]} 8. Ne5 {[%emt 0:11:42]} Bd6 {[%emt 0:13:39]} 9. Nd3 {[%emt 0:02:15]} O-O {[%emt 0:02:03]} 10. Be2 {[%emt 0:00:17]} Re8 {[%emt 0:01:59]} 11. O-O {[%emt 0:01:22]} c6 {[%emt 0:04:42]} 12. Qd1 {[%emt 0:04:26]} Qc7 {[%emt 0:07:13]} 13. h3 {[%emt 0:00:47]} Ne4 {[%emt 0:02:02]} 14. Qc2 {[%emt 0:03:52]} Bf5 {[%emt 0:01:49]} 15. Nxe4 {[%emt 0:00:40]} dxe4 {[%emt 0:02:53]} 16. Nc5 {[%emt 0:03:33]} Nd5 {[%emt 0:03:42]} 17. Bd2 {[%emt 0:01:22]} Qe7 {[%emt 0:04:55]} 18. Rfc1 {[%emt 0:04:39]} Rab8 {[%emt 0:17:54]} 19. Bf1 {[%emt 0:03:02]} h5 {[%emt 0:02:54]} 20. f4 {[%emt 0:03:37]} g5 {[%emt 0:03:03]} 21. g3 {[%emt 0:03:52]} gxf4 {[%emt 0:00:41]} 22. gxf4 {[%emt 0:00:24]} Kh7 {[%emt 0:01:10]} 23. Qd1 {[%emt 0:04:25]} Rg8+ {[%emt 0:00:55]} 24. Kh2 {[%emt 0:00:48]} Nxf4 {[%emt 0:01:47]} 25. exf4 {[%emt 0:00:28]} Qh4 {[%emt 0:00:15]} 26. Qe1 {[%emt 0:00:59]} Bxf4+ {[%emt 0:00:16]} 27. Bxf4 {[%emt 0:00:30]} Qxf4+ {[%emt 0:00:05]} 28. Kh1 {[%emt 0:00:08]} Qf3+ {[%emt 0:01:36]} 29. Kh2 {[%emt 0:00:04]} Qf4+ {[%emt 0:00:42]} 30. Kh1 {[%emt 0:00:04]} Qf3+ {[%emt 0:01:20]} 31. Kh2 {[%emt 0:00:05]} Qf4+ {[%emt 0:00:33]} 1/2-1/2

[Event "Mitropa Online Cup Open 2021"]
[Site "Hybrid"]
[Date "2021.05.04"]
[Round "1.5"]
[White "Morgunov, Marc"]
[Black "Droin, Augustin"]
[Result "1-0"]
[ECO "B51"]
[WhiteElo "2385"]
[BlackElo "2292"]
[Annotator "NA"]
[PlyCount "129"]
[EventDate "2021.05.04"]
[EventType "team-tourn"]
[EventCountry "NET"]
[SourceTitle "playchess.com"]
[Source "ChessBase"]
[SourceQuality "1"]
[WhiteTeam "Austria"]
[BlackTeam "France"]
[WhiteTeamCountry "AUT"]
[BlackTeamCountry "FRA"]
[TimeControl "40/5400+30:1800+30"]

1. e4 {[%emt 0:00:00]} c5 {[%emt 0:00:07]} 2. Nf3 {[%emt 0:00:16]} d6 {[%emt 0:00:07]} 3. Bb5+ {[%emt 0:00:30]} Nd7 {[%emt 0:00:09]} 4. Ba4 {[%emt 0:00:35]} Ngf6 {[%emt 0:00:12]} 5. Qe2 {[%emt 0:00:26]} e6 {[%emt 0:03:02]} 6. O-O {[%emt 0:02:43]} Be7 {[%emt 0:00:44]} 7. c3 {[%emt 0:00:57]} a6 {[%emt 0:02:35]} 8. d4 {[%emt 0:02:46]} b5 {[%emt 0:02:09]} 9. Bc2 {[%emt 0:00:25]} cxd4 {[%emt 0:00:09]} 10. cxd4 {[%emt 0:00:45]} Bb7 {[%emt 0:00:13]} 11. Nbd2 {[%emt 0:04:52]} e5 {[%emt 0:05:45]} 12. d5 {[%emt 0:06:09]} O-O {[%emt 0:07:00]} 13. Nb3 {[%emt 0:09:43]} Qb8 {[%emt 0:06:02]} 14. a4 {[%emt 0:09:48]} Rc8 {[%emt 0:06:32]} 15. a5 {[%emt 0:13:54]} Qc7 {[%emt 0:10:47]} 16. Bd3 {[%emt 0:05:36]} Nc5 {[%emt 0:01:06]} 17. Nxc5 {[%emt 0:00:45]} dxc5 {[%emt 0:00:14]} 18. b3 {[%emt 0:07:05]} Nd7 {[%emt 0:11:57]} 19. Bb2 {[%emt 0:05:12]} Bd6 {[%emt 0:03:28]} 20. Nh4 {[%emt 0:05:38]} c4 {[%emt 0:08:49]} 21. bxc4 {[%emt 0:01:23]} bxc4 {[%emt 0:00:06]} 22. Bc2 {[%emt 0:00:39]} g6 {[%emt 0:01:53]} 23. Bc3 {[%emt 0:03:34]} Nc5 {[%emt 0:03:57]} 24. Rfb1 {[%emt 0:02:56]} Rab8 {[%emt 0:01:23]} 25. Nf3 {[%emt 0:04:55]} Nb3 {[%emt 0:03:52]} 26. Ra2 {[%emt 0:01:36]} Ba8 {[%emt 0:02:18]} 27. Rab2 {[%emt 0:01:58]} Rb5 {[%emt 0:02:03]} 28. Qd1 {[%emt 0:03:57]} Qb8 {[%emt 0:01:46]} 29. Nd2 {[%emt 0:03:01]} Nd4 {[%emt 0:02:03]} 30. Ba4 {[%emt 0:00:47]} Rxb2 {[%emt 0:01:10]} 31. Rxb2 {[%emt 0:00:03]} Qa7 {[%emt 0:00:59]} 32. Nf3 {[%emt 0:00:21]} Nxf3+ {[%emt 0:02:08]} 33. Qxf3 {[%emt 0:00:05]} Qc5 {[%emt 0:01:17]} 34. Rb1 {[%emt 0:03:04]} Qa3 {[%emt 0:00:56]} 35. Ra1 {[%emt 0:00:16]} Qc5 {[%emt 0:00:12]} 36. Qd1 {[%emt 0:00:35]} Rb8 {[%emt 0:02:19]} 37. Rb1 {[%emt 0:00:08]} f5 {[%emt 0:01:23]} 38. Rxb8+ {[%emt 0:00:32]} Bxb8 {[%emt 0:00:05]} 39. Bc6 {[%emt 0:01:00]} Qa3 {[%emt 0:02:26]} 40. Qd2 {[%emt 0:00:00]} Bxc6 {[%emt 0:00:00]} 41. dxc6 {[%emt 0:00:33]} Qd6 {[%emt 0:06:26]} 42. Qd5+ {[%emt 0:03:26]} Kg7 {[%emt 0:01:45]} 43. f4 {[%emt 0:03:26]} Qa3 {[%emt 0:01:29]} 44. Bxe5+ {[%emt 0:16:08]} Bxe5 {[%emt 0:00:12]} 45. Qxe5+ {[%emt 0:00:05]} Kh6 {[%emt 0:00:09]} 46. h3 {[%emt 0:03:43]} c3 {[%emt 0:01:25]} 47. c7 {[%emt 0:00:16]} c2 {[%emt 0:00:06]} 48. c8=Q {[%emt 0:00:07]} c1=Q+ {[%emt 0:00:05]} 49. Qxc1 {[%emt 0:00:04]} Qxc1+ {[%emt 0:00:05]} 50. Kh2 {[%emt 0:00:05]} fxe4 {[%emt 0:02:50]} 51. Qxe4 {[%emt 0:00:24]} Qc5 {[%emt 0:02:23]} 52. Qe5 {[%emt 0:01:12]} Qf8 {[%emt 0:07:25]} 53. g4 {[%emt 0:03:19]} Qc8 {[%emt 0:02:19]} 54. g5+ {[%emt 0:00:27]} Kh5 {[%emt 0:00:09]} 55. Qe2+ {[%emt 0:00:03]} Kh4 {[%emt 0:00:06]} 56. Qf2+ {[%emt 0:00:05]} Kh5 {[%emt 0:00:05]} 57. Kg3 {[%emt 0:00:07]} Qc3+ {[%emt 0:01:18]} 58. Qf3+ {[%emt 0:00:06]} Qxf3+ {[%emt 0:00:10]} 59. Kxf3 {[%emt 0:00:03]} Kh4 {[%emt 0:01:54]} 60. Kg2 {[%emt 0:00:05]} Kh5 {[%emt 0:00:05]} 61. Kg3 {[%emt 0:00:03]} h6 {[%emt 0:00:05]} 62. gxh6 {[%emt 0:00:02]} Kxh6 {[%emt 0:00:11]} 63. Kg4 {[%emt 0:00:05]} Kg7 {[%emt 0:00:09]} 64. Kg5 {[%emt 0:00:04]} Kf7 {[%emt 0:00:07]} 65. f5 {[%emt 0:00:08]} 1-0

[Event "Mitropa Online Cup Open 2021"]
[Site "Hybrid"]
[Date "2021.05.04"]
[Round "2.1"]
[White "Prusikin, Michael"]
[Black "Dragnev, Valentin"]
[Result "0-1"]
[ECO "D10"]
[WhiteElo "2547"]
[BlackElo "2559"]
[Annotator "ChessBase"]
[PlyCount "86"]
[EventDate "2021.05.04"]
[EventType "team-tourn"]
[EventCountry "NET"]
[SourceTitle "playchess.com"]
[Source "ChessBase"]
[SourceQuality "1"]
[WhiteTeam "Germany"]
[BlackTeam "Austria"]
[WhiteTeamCountry "GER"]
[BlackTeamCountry "AUT"]
[TimeControl "40/5400+30:1800+30"]

1. d4 {[%emt 0:00:00]} d5 {[%emt 0:00:15]} 2. c4 {[%emt 0:00:08]} c6 {[%emt 0:00:06]} 3. cxd5 {[%emt 0:00:07]} cxd5 {[%emt 0:00:07]} 4. Bf4 {[%emt 0:00:27]} Nc6 {[%emt 0:00:10]} 5. e3 {[%emt 0:00:04]} Nf6 {[%emt 0:00:09]} 6. Nc3 {[%emt 0:00:05]} Bf5 {[%emt 0:00:26]} 7. Qb3 {[%emt 0:01:40]} Na5 {[%emt 0:00:12]} 8. Qa4+ {[%emt 0:00:33]} Bd7 {[%emt 0:00:12]} 9. Qc2 {[%emt 0:00:16]} e6 {[%emt 0:00:17]} 10. Bd3 {[%emt 0:03:43]} Rc8 {[%emt 0:00:20]} 11. Nf3 {[%emt 0:01:01]} Bb4 {[%emt 0:00:22]} 12. O-O {[%emt 0:02:05]} Nh5 {[%emt 0:00:19]} 13. Be5 {[%emt 0:07:37]} f6 {[%emt 0:01:28]} 14. Bg3 {[%emt 0:01:25]} Nc4 {[%emt 0:00:18]} 15. Rac1 {[%emt 0:02:25]} Nxg3 {[%emt 0:00:51]} 16. hxg3 {[%emt 0:00:16]} Nd6 {[%emt 0:00:11]} 17. Qb1 {[%emt 0:09:45]} Bxc3 {[%emt 0:05:34]} 18. Rxc3 {[%emt 0:05:55]} Rxc3 {[%emt 0:28:23]} 19. bxc3 {[%emt 0:00:18]} Qb6 {[%emt 0:01:22]} 20. Qb3 {[%emt 0:13:58]} Bb5 {[%emt 0:07:52]} 21. Bxb5+ {[%emt 0:02:05]} Qxb5 {[%emt 0:01:51]} 22. Qa3 {[%emt 0:02:14]} Qa6 {[%emt 0:07:21]} 23. Qxa6 {[%emt 0:02:19]} bxa6 {[%emt 0:02:43]} 24. Nd2 {[%emt 0:05:00]} Ke7 {[%emt 0:10:47]} 25. Rb1 {[%emt 0:01:30]} Rc8 {[%emt 0:00:14]} 26. Rb3 {[%emt 0:05:02]} Kd7 {[%emt 0:03:03]} 27. Ra3 {[%emt 0:03:21]} Rc6 {[%emt 0:02:38]} 28. Nb3 {[%emt 0:03:29]} Nc4 {[%emt 0:13:10]} 29. Rxa6 {[%emt 0:03:09]} Rxa6 {[%emt 0:00:06]} 30. Nc5+ {[%emt 0:00:04]} Kd6 {[%emt 0:01:05]} 31. Nxa6 {[%emt 0:00:07]} Nd2 {[%emt 0:00:21]} 32. Nc5 {[%emt 0:02:00]} Nb1 {[%emt 0:00:36]} 33. Na4 {[%emt 0:13:13]} Kc6 {[%emt 0:00:05]} 34. Kf1 {[%emt 0:00:11]} Kb5 {[%emt 0:05:30]} 35. Nc5 {[%emt 0:00:10]} e5 {[%emt 0:00:17]} 36. Ne6 {[%emt 0:03:28]} Nxc3 {[%emt 0:00:13]} 37. Nxg7 {[%emt 0:01:41]} exd4 {[%emt 0:01:06]} 38. exd4 {[%emt 0:00:09]} Nxa2 {[%emt 0:02:58]} 39. Ke2 {[%emt 0:01:40]} Kc4 {[%emt 0:01:42]} 40. Ne8 {[%emt 0:00:00]} Kxd4 {[%emt 0:00:00]} 41. Nxf6 {[%emt 0:05:31]} Nc3+ {[%emt 0:05:35]} 42. Kd2 {[%emt 0:08:46]} Ne4+ {[%emt 0:02:52]} 43. Nxe4 {[%emt 0:00:05]} dxe4 {[%emt 0:04:13]} 0-1

[Event "Mitropa Online Cup Open 2021"]
[Site "Hybrid"]
[Date "2021.05.04"]
[Round "2.2"]
[White "Froewis, Georg"]
[Black "Parvanyan, Ashot"]
[Result "1-0"]
[ECO "E99"]
[WhiteElo "2460"]
[BlackElo "2436"]
[Annotator "ChessBase"]
[PlyCount "81"]
[EventDate "2021.05.04"]
[EventType "team-tourn"]
[EventCountry "NET"]
[SourceTitle "playchess.com"]
[Source "ChessBase"]
[SourceQuality "1"]
[WhiteTeam "Austria"]
[BlackTeam "Germany"]
[WhiteTeamCountry "AUT"]
[BlackTeamCountry "GER"]
[TimeControl "40/5400+30:1800+30"]

1. c4 {[%emt 0:00:00]} Nf6 {[%emt 0:00:55]} 2. Nc3 {[%emt 0:00:06]} g6 {[%emt 0:01:03]} 3. e4 {[%emt 0:00:05]} d6 {[%emt 0:00:36]} 4. d4 {[%emt 0:00:05]} Bg7 {[%emt 0:00:19]} 5. Be2 {[%emt 0:00:07]} O-O {[%emt 0:00:16]} 6. Nf3 {[%emt 0:00:05]} e5 {[%emt 0:00:22]} 7. O-O {[%emt 0:00:05]} Nc6 {[%emt 0:00:09]} 8. d5 {[%emt 0:00:04]} Ne7 {[%emt 0:00:06]} 9. Ne1 {[%emt 0:00:05]} Nd7 {[%emt 0:00:19]} 10. Nd3 {[%emt 0:00:05]} f5 {[%emt 0:01:05]} 11. f3 {[%emt 0:00:05]} f4 {[%emt 0:00:28]} 12. Bd2 {[%emt 0:00:05]} g5 {[%emt 0:00:28]} 13. Rc1 {[%emt 0:00:06]} Ng6 {[%emt 0:00:15]} 14. c5 {[%emt 0:00:06]} Nf6 {[%emt 0:00:13]} 15. Nb5 {[%emt 0:00:16]} Rf7 {[%emt 0:00:58]} 16. Ba5 {[%emt 0:00:05]} b6 {[%emt 0:00:24]} 17. cxd6 {[%emt 0:00:07]} cxd6 {[%emt 0:00:08]} 18. Be1 {[%emt 0:00:05]} g4 {[%emt 0:00:48]} 19. fxg4 {[%emt 0:00:08]} Nxe4 {[%emt 0:00:19]} 20. Nb4 {[%emt 0:00:10]} a6 {[%emt 0:00:36]} 21. Bf3 {[%emt 0:00:07]} Ng5 {[%emt 0:00:46]} 22. Nc3 {[%emt 0:05:19]} Bf6 {[%emt 0:01:59]} 23. Nc6 {[%emt 0:16:10]} Qf8 {[%emt 0:01:44]} 24. Ne4 {[%emt 0:00:18]} Rg7 {[%emt 0:02:32]} 25. h3 {[%emt 0:06:41]} Bd7 {[%emt 0:01:54]} 26. Nxd6 {[%emt 0:20:37]} h5 {[%emt 0:42:19]} 27. Nf5 {[%emt 0:08:11]} e4 {[%emt 0:40:49]} 28. Bb4 {[%emt 0:05:08]} Qe8 {[%emt 0:00:22]} 29. Nxg7 {[%emt 0:09:01]} Kxg7 {[%emt 0:00:03]} 30. Bc3 {[%emt 0:11:02]} Bxc3 {[%emt 0:02:02]} 31. Rxc3 {[%emt 0:00:04]} exf3 {[%emt 0:00:06]} 32. Re1 {[%emt 0:01:04]} Qf8 {[%emt 0:01:02]} 33. gxh5 {[%emt 0:03:37]} Nh4 {[%emt 0:00:29]} 34. Ne5 {[%emt 0:08:03]} Bf5 {[%emt 0:00:27]} 35. Rc7+ {[%emt 0:00:56]} Kh6 {[%emt 0:00:13]} 36. Qd4 {[%emt 0:03:11]} fxg2 {[%emt 0:00:48]} 37. Qxf4 {[%emt 0:01:13]} Kxh5 {[%emt 0:00:16]} 38. Re3 {[%emt 0:00:17]} Rc8 {[%emt 0:00:45]} 39. Rg3 {[%emt 0:00:56]} Qd8 {[%emt 0:00:30]} 40. Rg7 {[%emt 0:00:00]} Nxh3+ {[%emt 0:00:00]} 41. Rxh3 {[%emt 0:02:22]} 1-0

[Event "Mitropa Online Cup Open 2021"]
[Site "Hybrid"]
[Date "2021.05.04"]
[Round "2.4"]
[White "Morgunov, Marc"]
[Black "Krastev, Alexander"]
[Result "1-0"]
[ECO "C79"]
[WhiteElo "2385"]
[BlackElo "2367"]
[Annotator "NA"]
[PlyCount "79"]
[EventDate "2021.05.04"]
[EventType "team-tourn"]
[EventCountry "NET"]
[SourceTitle "playchess.com"]
[Source "ChessBase"]
[SourceQuality "1"]
[WhiteTeam "Austria"]
[BlackTeam "Germany"]
[WhiteTeamCountry "AUT"]
[BlackTeamCountry "GER"]
[TimeControl "40/5400+30:1800+30"]

1. e4 {[%emt 0:00:00]} e5 {[%emt 0:00:04]} 2. Nf3 {[%emt 0:00:13]} Nc6 {[%emt 0:00:02]} 3. Bb5 {[%emt 0:00:27]} a6 {[%emt 0:00:03]} 4. Ba4 {[%emt 0:00:06]} d6 {[%emt 0:00:08]} 5. O-O {[%emt 0:03:04]} Nf6 {[%emt 0:00:09]} 6. Re1 {[%emt 0:04:24]} Bd7 {[%emt 0:00:15]} 7. c3 {[%emt 0:02:37]} g6 {[%emt 0:00:23]} 8. d4 {[%emt 0:00:57]} b5 {[%emt 0:00:07]} 9. Bc2 {[%emt 0:01:39]} Bg7 {[%emt 0:00:23]} 10. Nbd2 {[%emt 0:01:56]} O-O {[%emt 0:00:40]} 11. h3 {[%emt 0:03:19]} Re8 {[%emt 0:00:14]} 12. Nf1 {[%emt 0:02:31]} Na5 {[%emt 0:00:24]} 13. b3 {[%emt 0:10:46]} c5 {[%emt 0:01:48]} 14. Ng3 {[%emt 0:02:18]} Qc7 {[%emt 0:11:24]} 15. Be3 {[%emt 0:06:55]} cxd4 {[%emt 0:22:37]} 16. cxd4 {[%emt 0:00:42]} exd4 {[%emt 0:00:03]} 17. Nxd4 {[%emt 0:17:01]} Nc6 {[%emt 0:05:23]} 18. Rc1 {[%emt 0:02:43]} Rad8 {[%emt 0:04:04]} 19. Bb1 {[%emt 0:04:13]} Qb7 {[%emt 0:01:08]} 20. Nde2 {[%emt 0:05:28]} Be6 {[%emt 0:17:59]} 21. f4 {[%emt 0:05:38]} Bc8 {[%emt 0:06:27]} 22. Nd4 {[%emt 0:03:18]} Nxd4 {[%emt 0:04:02]} 23. Bxd4 {[%emt 0:00:05]} Qa8 {[%emt 0:00:01]} 24. Qd2 {[%emt 0:05:38]} Re7 {[%emt 0:04:53]} 25. f5 {[%emt 0:07:36]} Ne8 {[%emt 0:07:32]} 26. Bxg7 {[%emt 0:03:29]} Kxg7 {[%emt 0:00:02]} 27. e5 {[%emt 0:00:12]} Kg8 {[%emt 0:02:11]} 28. e6 {[%emt 0:03:32]} fxe6 {[%emt 0:01:45]} 29. fxg6 {[%emt 0:01:04]} hxg6 {[%emt 0:00:14]} 30. Bxg6 {[%emt 0:00:09]} Rg7 {[%emt 0:01:27]} 31. Qh6 {[%emt 0:00:07]} Nf6 {[%emt 0:08:58]} 32. Rf1 {[%emt 0:01:19]} Qa7+ {[%emt 0:00:02]} 33. Kh2 {[%emt 0:01:12]} Qd4 {[%emt 0:00:29]} 34. Rxf6 {[%emt 0:00:31]} Qxf6 {[%emt 0:00:10]} 35. Bh7+ {[%emt 0:00:19]} Kf7 {[%emt 0:00:03]} 36. Rf1 {[%emt 0:00:21]} Qxf1 {[%emt 0:00:08]} 37. Nxf1 {[%emt 0:00:04]} Bb7 {[%emt 0:00:24]} 38. Ne3 {[%emt 0:00:55]} Rd7 {[%emt 0:01:49]} 39. Ng4 {[%emt 0:01:39]} Kf8 {[%emt 0:00:23]} 40. Bg6 {[%emt 0:00:00]} 1-0

[Event "Mitropa Online Cup Open 2021"]
[Site "Hybrid"]
[Date "2021.05.04"]
[Round "2.6"]
[White "Sochacki, Christophe"]
[Black "Antal, Gergely"]
[Result "1-0"]
[ECO "B13"]
[WhiteElo "2477"]
[BlackElo "2572"]
[Annotator "ChessBase"]
[PlyCount "79"]
[EventDate "2021.05.04"]
[EventType "team-tourn"]
[EventCountry "NET"]
[SourceTitle "playchess.com"]
[Source "ChessBase"]
[SourceQuality "1"]
[WhiteTeam "France"]
[BlackTeam "Hungary"]
[WhiteTeamCountry "FRA"]
[BlackTeamCountry "HUN"]
[TimeControl "40/5400+30:1800+30"]

1. e4 {[%emt 0:00:00]} c6 {[%emt 0:00:15]} 2. d4 {[%emt 0:00:10]} d5 {[%emt 0:00:05]} 3. exd5 {[%emt 0:00:07]} cxd5 {[%emt 0:00:08]} 4. Bd3 {[%emt 0:00:07]} Nc6 {[%emt 0:01:05]} 5. c3 {[%emt 0:00:16]} Qc7 {[%emt 0:00:25]} 6. h3 {[%emt 0:00:58]} Nf6 {[%emt 0:01:42]} 7. Nf3 {[%emt 0:00:34]} g6 {[%emt 0:00:45]} 8. O-O {[%emt 0:00:23]} Bf5 {[%emt 0:00:31]} 9. Re1 {[%emt 0:06:26]} Bxd3 {[%emt 0:00:50]} 10. Qxd3 {[%emt 0:00:11]} Bg7 {[%emt 0:00:14]} 11. Ne5 {[%emt 0:13:37]} Nxe5 {[%emt 0:29:28]} 12. dxe5 {[%emt 0:07:58]} Nd7 {[%emt 0:00:09]} 13. Qxd5 {[%emt 0:01:22]} e6 {[%emt 0:15:49]} 14. Qe4 {[%emt 0:02:17]} Qxe5 {[%emt 0:05:37]} 15. Na3 {[%emt 0:05:06]} O-O {[%emt 0:02:23]} 16. Qxe5 {[%emt 0:06:37]} Nxe5 {[%emt 0:00:37]} 17. Be3 {[%emt 0:00:27]} Rfd8 {[%emt 0:07:38]} 18. Rad1 {[%emt 0:10:12]} a6 {[%emt 0:07:13]} 19. Bb6 {[%emt 0:16:45]} Rxd1 {[%emt 0:00:41]} 20. Rxd1 {[%emt 0:00:54]} g5 {[%emt 0:03:01]} 21. Kf1 {[%emt 0:02:22]} Rc8 {[%emt 0:02:36]} 22. Be3 {[%emt 0:05:39]} h6 {[%emt 0:01:54]} 23. Ke2 {[%emt 0:01:48]} Bf8 {[%emt 0:07:35]} 24. Nc2 {[%emt 0:01:36]} b5 {[%emt 0:02:35]} 25. a3 {[%emt 0:02:32]} Be7 {[%emt 0:02:24]} 26. Bc1 {[%emt 0:02:34]} Kf8 {[%emt 0:03:09]} 27. h4 {[%emt 0:01:27]} Ke8 {[%emt 0:00:58]} 28. hxg5 {[%emt 0:01:49]} hxg5 {[%emt 0:00:05]} 29. Rh1 {[%emt 0:01:05]} Ng6 {[%emt 0:01:48]} 30. Be3 {[%emt 0:02:16]} e5 {[%emt 0:01:41]} 31. Nb4 {[%emt 0:00:37]} Bxb4 {[%emt 0:01:21]} 32. axb4 {[%emt 0:00:05]} f6 {[%emt 0:00:18]} 33. Rh7 {[%emt 0:00:13]} Nf8 {[%emt 0:00:50]} 34. Ra7 {[%emt 0:00:49]} Rc6 {[%emt 0:00:02]} 35. Kd3 {[%emt 0:01:11]} f5 {[%emt 0:00:46]} 36. g4 {[%emt 0:03:56]} Rd6+ {[%emt 0:00:42]} 37. Ke2 {[%emt 0:00:08]} fxg4 {[%emt 0:00:15]} 38. Bc5 {[%emt 0:00:11]} g3 {[%emt 0:00:51]} 39. fxg3 {[%emt 0:00:15]} Rd7 {[%emt 0:00:31]} 40. Ra8+ {[%emt 0:00:00]} 1-0

[Event "Mitropa Online Cup Open 2021"]
[Site "Hybrid"]
[Date "2021.05.04"]
[Round "2.7"]
[White "Mihok, Oliver"]
[Black "Travadon, Loic"]
[Result "1/2-1/2"]
[ECO "B45"]
[WhiteElo "2547"]
[BlackElo "2414"]
[Annotator "ChessBase"]
[PlyCount "40"]
[EventDate "2021.05.04"]
[EventType "team-tourn"]
[EventCountry "NET"]
[SourceTitle "playchess.com"]
[Source "ChessBase"]
[SourceQuality "1"]
[WhiteTeam "Hungary"]
[BlackTeam "France"]
[WhiteTeamCountry "HUN"]
[BlackTeamCountry "FRA"]
[TimeControl "40/5400+30:1800+30"]

1. e4 {[%emt 0:00:00]} c5 {[%emt 0:00:05]} 2. Nf3 {[%emt 0:00:26]} Nc6 {[%emt 0:00:12]} 3. Nc3 {[%emt 0:00:06]} e6 {[%emt 0:00:11]} 4. d4 {[%emt 0:00:05]} cxd4 {[%emt 0:00:04]} 5. Nxd4 {[%emt 0:00:07]} Nf6 {[%emt 0:00:10]} 6. Be2 {[%emt 0:00:39]} Bb4 {[%emt 0:00:06]} 7. O-O {[%emt 0:00:10]} Bxc3 {[%emt 0:00:11]} 8. bxc3 {[%emt 0:00:07]} Nxe4 {[%emt 0:00:12]} 9. Bd3 {[%emt 0:00:10]} d5 {[%emt 0:00:18]} 10. Ba3 {[%emt 0:00:41]} Qa5 {[%emt 0:00:22]} 11. Qc1 {[%emt 0:00:37]} Nxc3 {[%emt 0:00:25]} 12. Nb3 {[%emt 0:00:57]} Qc7 {[%emt 0:00:05]} 13. Qe1 {[%emt 0:07:43]} d4 {[%emt 0:01:11]} 14. f4 {[%emt 0:09:05]} b6 {[%emt 0:01:37]} 15. Qh4 {[%emt 0:23:53]} Bb7 {[%emt 0:00:11]} 16. Rae1 {[%emt 0:03:12]} Qd8 {[%emt 0:00:24]} 17. Qg3 {[%emt 0:04:51]} Qd5 {[%emt 0:00:30]} 18. Qh4 {[%emt 0:07:28]} Qd8 {[%emt 0:00:07]} 19. Qg3 {[%emt 0:00:44]} Qd5 {[%emt 0:00:05]} 20. Qh4 {[%emt 0:00:26]} Qd8 {[%emt 0:00:09]} 1/2-1/2